[Event "Karel Janecek Open 2025"]
[Site "Prague"]
[Date "2025.02.28"]
[Round "2.11"]
[White "Mametev, Artem"]
[Black "Ioannidis, Evgenios"]
[Result "0-1"]
[Annotator "ChessBase"]
[ECO "C03"]
[WhiteElo "2155"]
[BlackElo "2484"]
[PlyCount "99"]
[EventDate "2025.02.21"]
[EventType "swiss"]
[EventCountry "CZE"]
[SourceTitle "playchess.com"]
[Source "ChessBase"]
[SourceQuality "1"]
[TimeControl "40/5400+30:1800+30"]

1. e4 {[%emt 0:00:11]} e6 {[%emt 0:00:32]} 2. d4 {[%emt 0:00:15]} d5 {[%emt 0:00:05]} 3. Nd2 {[%emt 0:00:06]} Be7 {[%emt 0:00:10]} 4. Ngf3 {[%emt 0:00:32]} Nf6 {[%emt 0:00:12]} 5. Bd3 {[%emt 0:02:20]} c5 {[%emt 0:00:17]} 6. dxc5 {[%emt 0:05:25]} Nbd7 {[%emt 0:03:18]} 7. b4 {[%emt 0:15:55]} a5 {[%emt 0:00:48]} 8. c3 {[%emt 0:00:22]} dxe4 {[%emt 0:01:20]} 9. Nxe4 {[%emt 0:00:19]} Nxe4 {[%emt 0:00:14]} 10. Bxe4 {[%emt 0:00:08]} Bf6 {[%emt 0:00:25]} 11. Bd2 {[%emt 0:02:52]} axb4 {[%emt 0:00:40]} 12. cxb4 {[%emt 0:00:02]} Bxa1 {[%emt 0:00:56]} 13. Qxa1 {[%emt 0:00:03]} Nf6 {[%emt 0:05:49]} 14. Bg5 {[%emt 0:09:01]} h6 {[%emt 0:00:08]} 15. Bh4 {[%emt 0:00:15]} Qc7 {[%emt 0:00:13]} 16. Bxf6 {[%emt 0:01:05]} Qf4 {[%emt 0:00:08]} 17. O-O {[%emt 0:11:57]} Qxf6 {[%emt 0:05:16]} 18. c6 {[%emt 0:03:01]} Qxa1 {[%emt 0:03:48]} 19. Rxa1 {[%emt 0:00:02]} Ra7 {[%emt 0:00:08]} 20. b5 {[%emt 0:03:11]} f5 {[%emt 0:09:17]} 21. cxb7 {[%emt 0:11:40]} Bxb7 {[%emt 0:00:09]} 22. Bxb7 {[%emt 0:00:07]} Rxb7 {[%emt 0:00:07]} 23. a4 {[%emt 0:00:22]} Ke7 {[%emt 0:01:36]} 24. Nd4 {[%emt 0:01:42]} Ra8 {[%emt 0:01:31]} 25. f4 {[%emt 0:06:57]} Kf6 {[%emt 0:10:32]} 26. a5 {[%emt 0:01:00]} e5 {[%emt 0:03:48]} 27. fxe5+ {[%emt 0:00:30]} Kxe5 {[%emt 0:00:06]} 28. Rd1 {[%emt 0:02:45]} Ke4 {[%emt 0:31:40]} 29. Ne6 {[%emt 0:02:47]} Rxb5 {[%emt 0:00:06]} 30. Re1+ {[%emt 0:00:31]} Kd3 {[%emt 0:00:05]} 31. Nc7 {[%emt 0:00:07]} Raxa5 {[%emt 0:00:27]} 32. Nxb5 {[%emt 0:00:06]} Rxb5 {[%emt 0:00:03]} 33. Re7 {[%emt 0:02:22]} g5 {[%emt 0:00:08]} 34. Kf2 {[%emt 0:01:46]} Kd4 {[%emt 0:01:26]} 35. Re6 {[%emt 0:02:50]} h5 {[%emt 0:00:15]} 36. h3 {[%emt 0:01:11]} f4 {[%emt 0:04:44]} 37. Rh6 {[%emt 0:07:03]} g4 {[%emt 0:00:32]} 38. hxg4 {[%emt 0:00:05]} hxg4 {[%emt 0:00:03]} 39. Rh4 {[%emt 0:03:01]} Rb2+ {[%emt 0:00:27]} 40. Kg1 {[%emt 0:01:09]} Rb1+ {[%emt 0:00:05]} 41. Kf2 {[%emt 0:30:33]} g3+ {[%emt 0:30:06]} 42. Kf3 {[%emt 0:02:12]} Rf1+ {[%emt 0:00:25]} 43. Kg4 {[%emt 0:00:17]} Ke3 {[%emt 0:00:25]} 44. Rh8 {[%emt 0:00:54]} Kf2 {[%emt 0:00:06]} 45. Kxf4 {[%emt 0:00:22]} Kxg2+ {[%emt 0:00:05]} 46. Ke3 {[%emt 0:00:56]} Kg1 {[%emt 0:00:16]} 47. Ke2 {[%emt 0:00:52]} g2 {[%emt 0:00:06]} 48. Rh7 {[%emt 0:02:47]} Rf8 {[%emt 0:00:06]} 49. Ra7 {[%emt 0:00:00]} Rh8 {[%emt 0:00:00]} 50. Ra1+ {[%emt 0:00:59]} 0-1

[Event "Karel Janecek Open 2025"]
[Site "Prague"]
[Date "2025.02.28"]
[Round "2.12"]
[White "Poetsch, Hagen"]
[Black "Topencik, Bruno"]
[Result "1/2-1/2"]
[Annotator "ChessBase"]
[ECO "D03"]
[WhiteElo "2482"]
[BlackElo "2153"]
[PlyCount "34"]
[EventDate "2025.02.21"]
[EventType "swiss"]
[EventCountry "CZE"]
[SourceTitle "playchess.com"]
[Source "ChessBase"]
[SourceQuality "1"]
[TimeControl "40/5400+30:1800+30"]

1. d4 {[%emt 0:00:26]} Nf6 {[%emt 0:00:35]} 2. Bg5 {[%emt 0:00:08]} d5 {[%emt 0:02:42]} 3. Nd2 {[%emt 0:00:32]} Nbd7 {[%emt 0:02:53]} 4. e3 {[%emt 0:02:57]} e6 {[%emt 0:01:06]} 5. Bd3 {[%emt 0:02:40]} Be7 {[%emt 0:03:16]} 6. Ngf3 {[%emt 0:00:16]} b6 {[%emt 0:02:50]} 7. Ne5 {[%emt 0:16:32]} Nxe5 {[%emt 0:02:26]} 8. dxe5 {[%emt 0:01:54]} Nd7 {[%emt 0:00:09]} 9. Bxe7 {[%emt 0:00:37]} Qxe7 {[%emt 0:00:07]} 10. Qg4 {[%emt 0:00:28]} f5 {[%emt 0:04:00]} 11. Qg3 {[%emt 0:07:57]} Nc5 {[%emt 0:02:47]} 12. Be2 {[%emt 0:05:04]} Ba6 {[%emt 0:01:53]} 13. Bxa6 {[%emt 0:00:33]} Nxa6 {[%emt 0:00:07]} 14. O-O {[%emt 0:02:01]} O-O {[%emt 0:01:36]} 15. Rfd1 {[%emt 0:00:56]} Nc5 {[%emt 0:01:33]} 16. Qf3 {[%emt 0:07:43]} Ne4 {[%emt 0:06:01]} 17. Qe2 {[%emt 0:01:30]} Nxd2 {[%emt 0:01:08]} 1/2-1/2

[Event "Karel Janecek Open 2025"]
[Site "Prague"]
[Date "2025.02.28"]
[Round "2.13"]
[White "Brzezinski, Adam"]
[Black "Vykouk, Jan"]
[Result "0-1"]
[Annotator "ChessBase"]
[ECO "C02"]
[WhiteElo "2147"]
[BlackElo "2478"]
[PlyCount "52"]
[EventDate "2025.02.21"]
[EventType "swiss"]
[EventCountry "CZE"]
[SourceTitle "playchess.com"]
[Source "ChessBase"]
[SourceQuality "1"]
[TimeControl "40/5400+30:1800+30"]

1. e4 {[%emt 0:02:09]} c5 {[%emt 0:00:38]} 2. c3 {[%emt 0:00:21]} e6 {[%emt 0:02:07]} 3. d4 {[%emt 0:00:31]} d5 {[%emt 0:00:20]} 4. e5 {[%emt 0:01:17]} Nc6 {[%emt 0:00:05]} 5. Nf3 {[%emt 0:00:10]} Qb6 {[%emt 0:00:52]} 6. Bd3 {[%emt 0:01:22]} cxd4 {[%emt 0:00:43]} 7. O-O {[%emt 0:00:12]} Bd7 {[%emt 0:00:07]} 8. Re1 {[%emt 0:00:29]} Nh6 {[%emt 0:00:17]} 9. c4 {[%emt 0:01:06]} dxc4 {[%emt 0:01:55]} 10. Bxc4 {[%emt 0:00:08]} Bc5 {[%emt 0:01:49]} 11. Bxh6 {[%emt 0:06:40]} gxh6 {[%emt 0:00:59]} 12. Nbd2 {[%emt 0:02:53]} Be7 {[%emt 0:02:59]} 13. a3 {[%emt 0:03:07]} a5 {[%emt 0:02:01]} 14. Ne4 {[%emt 0:15:48]} a4 {[%emt 0:00:20]} 15. Qd2 {[%emt 0:05:31]} O-O-O {[%emt 0:03:28]} 16. Rec1 {[%emt 0:06:40]} Kb8 {[%emt 0:00:15]} 17. Rab1 {[%emt 0:01:54]} Na5 {[%emt 0:03:29]} 18. Ba2 {[%emt 0:10:10]} Bc6 {[%emt 0:05:46]} 19. Qf4 {[%emt 0:03:00]} Rhg8 {[%emt 0:08:40]} 20. Nfd2 {[%emt 0:06:59]} Bg5 {[%emt 0:05:32]} 21. Nxg5 {[%emt 0:01:46]} Rxg5 {[%emt 0:00:13]} 22. f3 {[%emt 0:04:29]} Rdg8 {[%emt 0:07:10]} 23. g4 {[%emt 0:03:48]} Rf5 {[%emt 0:03:25]} 24. Qg3 {[%emt 0:01:31]} d3+ {[%emt 0:00:12]} 25. Kh1 {[%emt 0:00:39]} Qe3 {[%emt 0:00:56]} 26. Rxc6 {[%emt 0:01:10]} Nxc6 {[%emt 0:00:17]} 0-1

[Event "Karel Janecek Open 2025"]
[Site "Prague"]
[Date "2025.02.28"]
[Round "2.14"]
[White "Isik, Alparslan"]
[Black "Diachek, Andrii"]
[Result "1/2-1/2"]
[Annotator "ChessBase"]
[ECO "A11"]
[WhiteElo "2477"]
[BlackElo "2146"]
[PlyCount "144"]
[EventDate "2025.02.21"]
[EventType "swiss"]
[EventCountry "CZE"]
[SourceTitle "playchess.com"]
[Source "ChessBase"]
[SourceQuality "1"]
[TimeControl "40/5400+30:1800+30"]

1. Nf3 {[%emt 0:07:20]} d5 {[%emt 0:00:05]} 2. g3 {[%emt 0:00:05]} Nf6 {[%emt 0:00:05]} 3. Bg2 {[%emt 0:00:03]} c6 {[%emt 0:00:08]} 4. c4 {[%emt 0:00:05]} Bg4 {[%emt 0:00:08]} 5. Ne5 {[%emt 0:00:35]} Bf5 {[%emt 0:00:10]} 6. cxd5 {[%emt 0:00:52]} cxd5 {[%emt 0:00:13]} 7. Nc3 {[%emt 0:00:23]} Nc6 {[%emt 0:03:19]} 8. Qa4 {[%emt 0:04:01]} Bd7 {[%emt 0:01:12]} 9. Nxd7 {[%emt 0:00:17]} Qxd7 {[%emt 0:00:09]} 10. O-O {[%emt 0:00:47]} e6 {[%emt 0:04:31]} 11. d3 {[%emt 0:02:32]} Be7 {[%emt 0:03:23]} 12. e4 {[%emt 0:01:16]} dxe4 {[%emt 0:10:19]} 13. dxe4 {[%emt 0:00:06]} O-O {[%emt 0:06:07]} 14. Rd1 {[%emt 0:02:14]} Qc7 {[%emt 0:00:32]} 15. Qc2 {[%emt 0:18:07]} Qa5 {[%emt 0:05:12]} 16. Bd2 {[%emt 0:06:14]} Qa6 {[%emt 0:07:40]} 17. Bf4 {[%emt 0:10:06]} Rfd8 {[%emt 0:08:40]} 18. Bc7 {[%emt 0:07:47]} Nd4 {[%emt 0:03:00]} 19. Qb1 {[%emt 0:10:28]} Rd7 {[%emt 0:02:37]} 20. e5 {[%emt 0:00:49]} Ne8 {[%emt 0:06:05]} 21. Bd6 {[%emt 0:00:11]} Nb5 {[%emt 0:02:17]} 22. Bf1 {[%emt 0:02:09]} Nxc3 {[%emt 0:01:08]} 23. bxc3 {[%emt 0:00:02]} Qa5 {[%emt 0:01:51]} 24. Qb5 {[%emt 0:02:42]} Qxb5 {[%emt 0:02:29]} 25. Bxb5 {[%emt 0:00:01]} Rxd6 {[%emt 0:00:18]} 26. exd6 {[%emt 0:00:05]} Nxd6 {[%emt 0:00:05]} 27. Bf1 {[%emt 0:01:02]} Rc8 {[%emt 0:02:53]} 28. Rd3 {[%emt 0:01:20]} Ne4 {[%emt 0:05:41]} 29. Bg2 {[%emt 0:04:32]} Nc5 {[%emt 0:00:14]} 30. Rd2 {[%emt 0:04:44]} Bd8 {[%emt 0:02:32]} 31. Rb1 {[%emt 0:01:49]} b6 {[%emt 0:02:34]} 32. c4 {[%emt 0:03:35]} Bc7 {[%emt 0:00:53]} 33. Rbd1 {[%emt 0:01:00]} Kf8 {[%emt 0:00:52]} 34. Bc6 {[%emt 0:04:50]} Ke7 {[%emt 0:02:35]} 35. Kg2 {[%emt 0:02:02]} Be5 {[%emt 0:03:25]} 36. Bb7 {[%emt 0:00:36]} Rc7 {[%emt 0:01:02]} 37. Bf3 {[%emt 0:00:33]} Bc3 {[%emt 0:03:54]} 38. Rd8 {[%emt 0:00:43]} Nd7 {[%emt 0:00:09]} 39. Ra8 {[%emt 0:00:47]} Be5 {[%emt 0:03:51]} 40. Rd2 {[%emt 0:01:26]} Bd6 {[%emt 0:03:26]} 41. Bd1 {[%emt 0:30:41]} Nc5 {[%emt 0:06:51]} 42. Bc2 {[%emt 0:00:00]} h6 {[%emt 0:02:15]} 43. Rg8 {[%emt 0:00:00]} Nd7 {[%emt 0:03:42]} 44. Rxg7 {[%emt 0:00:00]} Bb4 {[%emt 0:00:44]} 45. Rd3 {[%emt 0:00:00]} Nf6 {[%emt 0:01:51]} 46. Rf3 {[%emt 0:00:00]} Kf8 {[%emt 0:01:54]} 47. Rg6 {[%emt 0:00:00]} fxg6 {[%emt 0:00:08]} 48. Rxf6+ {[%emt 0:00:00]} Ke7 {[%emt 0:01:33]} 49. Rxg6 {[%emt 0:00:00]} Rxc4 {[%emt 0:02:51]} 50. Bb3 {[%emt 0:00:00]} Re4 {[%emt 0:00:13]} 51. Rxh6 {[%emt 0:00:00]} Bc5 {[%emt 0:00:35]} 52. Kf3 {[%emt 0:00:00]} Re1 {[%emt 0:02:26]} 53. Rh7+ {[%emt 0:02:39]} Kf6 {[%emt 0:02:54]} 54. Rxa7 {[%emt 0:00:21]} Rf1 {[%emt 0:00:20]} 55. h4 {[%emt 0:00:49]} Rxf2+ {[%emt 0:00:47]} 56. Kg4 {[%emt 0:00:01]} Rd2 {[%emt 0:01:56]} 57. Kh5 {[%emt 0:02:01]} Rh2 {[%emt 0:04:41]} 58. g4 {[%emt 0:00:29]} Be3 {[%emt 0:00:36]} 59. Ra8 {[%emt 0:02:40]} Bg5 {[%emt 0:01:25]} 60. Rf8+ {[%emt 0:00:06]} Kg7 {[%emt 0:01:26]} 61. Kxg5 {[%emt 0:00:08]} Kxf8 {[%emt 0:00:12]} 62. Bxe6 {[%emt 0:00:05]} Kg7 {[%emt 0:02:03]} 63. h5 {[%emt 0:00:07]} Rh1 {[%emt 0:00:36]} 64. a4 {[%emt 0:01:44]} Rh2 {[%emt 0:00:25]} 65. Bd5 {[%emt 0:00:08]} Re2 {[%emt 0:01:28]} 66. h6+ {[%emt 0:02:04]} Kh7 {[%emt 0:00:04]} 67. Bc4 {[%emt 0:00:26]} Re5+ {[%emt 0:00:58]} 68. Kf6 {[%emt 0:00:24]} Rc5 {[%emt 0:00:38]} 69. Bd3+ {[%emt 0:00:22]} Kxh6 {[%emt 0:00:08]} 70. Bf5 {[%emt 0:00:01]} Rc6+ {[%emt 0:00:20]} 71. Be6 {[%emt 0:00:01]} Rc5 {[%emt 0:00:08]} 72. Bf5 {[%emt 0:00:03]} Rc6+ {[%emt 0:00:05]} 1/2-1/2

[Event "Karel Janecek Open 2025"]
[Site "Prague"]
[Date "2025.02.28"]
[Round "2.15"]
[White "Gibaud, Elian"]
[Black "Haring, Filip"]
[Result "0-1"]
[Annotator "ChessBase"]
[ECO "B41"]
[WhiteElo "2146"]
[BlackElo "2470"]
[PlyCount "118"]
[EventDate "2025.02.21"]
[EventType "swiss"]
[EventCountry "CZE"]
[SourceTitle "playchess.com"]
[Source "ChessBase"]
[SourceQuality "1"]
[TimeControl "40/5400+30:1800+30"]

1. e4 {[%emt 0:00:06]} c5 {[%emt 0:00:12]} 2. Nf3 {[%emt 0:00:13]} e6 {[%emt 0:00:27]} 3. d4 {[%emt 0:00:48]} cxd4 {[%emt 0:00:06]} 4. Nxd4 {[%emt 0:00:08]} a6 {[%emt 0:00:04]} 5. c4 {[%emt 0:00:28]} Nf6 {[%emt 0:00:21]} 6. Nc3 {[%emt 0:00:20]} Qc7 {[%emt 0:00:07]} 7. a3 {[%emt 0:00:35]} d6 {[%emt 0:00:58]} 8. Be2 {[%emt 0:05:35]} b6 {[%emt 0:01:37]} 9. f4 {[%emt 0:13:51]} Bb7 {[%emt 0:06:34]} 10. Qd3 {[%emt 0:00:37]} Nbd7 {[%emt 0:04:42]} 11. b4 {[%emt 0:02:32]} Rc8 {[%emt 0:03:07]} 12. Bb2 {[%emt 0:02:17]} e5 {[%emt 0:17:03]} 13. Nf5 {[%emt 0:11:00]} g6 {[%emt 0:14:22]} 14. Ne3 {[%emt 0:01:47]} Bh6 {[%emt 0:03:46]} 15. g3 {[%emt 0:21:18]} O-O {[%emt 0:02:06]} 16. O-O {[%emt 0:02:42]} exf4 {[%emt 0:07:09]} 17. gxf4 {[%emt 0:00:19]} Bg7 {[%emt 0:01:27]} 18. Rad1 {[%emt 0:02:50]} Rfe8 {[%emt 0:04:22]} 19. Bf3 {[%emt 0:03:24]} b5 {[%emt 0:16:47]} 20. Qxd6 {[%emt 0:09:16]} Qxd6 {[%emt 0:08:58]} 21. Rxd6 {[%emt 0:00:13]} Bxe4 {[%emt 0:00:58]} 22. c5 {[%emt 0:06:44]} Nb8 {[%emt 0:01:22]} 23. Ncd1 {[%emt 0:07:27]} Bxf3 {[%emt 0:02:12]} 24. Rxf3 {[%emt 0:02:44]} Ne4 {[%emt 0:00:04]} 25. Rd3 {[%emt 0:00:13]} Nc6 {[%emt 0:01:42]} 26. Bxg7 {[%emt 0:02:17]} Kxg7 {[%emt 0:00:02]} 27. Nd5 {[%emt 0:00:17]} a5 {[%emt 0:00:59]} 28. N1c3 {[%emt 0:01:41]} axb4 {[%emt 0:00:23]} 29. axb4 {[%emt 0:01:35]} Nxc3 {[%emt 0:00:04]} 30. Rxc3 {[%emt 0:00:18]} Rcd8 {[%emt 0:02:30]} 31. Nc7 {[%emt 0:01:15]} Re2 {[%emt 0:00:32]} 32. Rf2 {[%emt 0:00:34]} Rxf2 {[%emt 0:00:49]} 33. Kxf2 {[%emt 0:00:04]} Rd4 {[%emt 0:00:04]} 34. Ke3 {[%emt 0:01:21]} Rxb4 {[%emt 0:00:17]} 35. Rd3 {[%emt 0:00:26]} Rc4 {[%emt 0:00:46]} 36. Rd7 {[%emt 0:00:21]} b4 {[%emt 0:00:59]} 37. Ne8+ {[%emt 0:00:33]} Kf8 {[%emt 0:00:28]} 38. Nd6 {[%emt 0:00:20]} Rc3+ {[%emt 0:00:29]} 39. Ke4 {[%emt 0:00:41]} Rxc5 {[%emt 0:00:32]} 40. Rxf7+ {[%emt 0:00:30]} Kg8 {[%emt 0:00:02]} 41. Rb7 {[%emt 0:01:36]} Rh5 {[%emt 0:09:03]} 42. Ne8 {[%emt 0:07:02]} Rf5 {[%emt 0:01:42]} 43. Nd6 {[%emt 0:02:00]} Ra5 {[%emt 0:04:34]} 44. h4 {[%emt 0:07:27]} h5 {[%emt 0:08:15]} 45. Rc7 {[%emt 0:05:22]} Ra6 {[%emt 0:04:31]} 46. Nc4 {[%emt 0:04:02]} b3 {[%emt 0:02:07]} 47. Rb7 {[%emt 0:01:05]} Ra4 {[%emt 0:00:02]} 48. Kd5 {[%emt 0:02:33]} Rxc4 {[%emt 0:00:03]} 49. Rxb3 {[%emt 0:00:07]} Rxf4 {[%emt 0:01:48]} 50. Kxc6 {[%emt 0:00:07]} Rxh4 {[%emt 0:00:03]} 51. Rb7 {[%emt 0:00:10]} Rf4 {[%emt 0:00:09]} 52. Kd6 {[%emt 0:00:10]} Rf7 {[%emt 0:00:12]} 53. Rb1 {[%emt 0:00:13]} Kg7 {[%emt 0:00:05]} 54. Ke6 {[%emt 0:00:07]} Rf5 {[%emt 0:00:11]} 55. Rh1 {[%emt 0:00:20]} Kh6 {[%emt 0:00:15]} 56. Rh2 {[%emt 0:00:11]} Rf4 {[%emt 0:00:20]} 57. Ke5 {[%emt 0:00:08]} Kg5 {[%emt 0:00:14]} 58. Rh1 {[%emt 0:00:51]} h4 {[%emt 0:00:19]} 59. Rh2 {[%emt 0:00:11]} Rg4 {[%emt 0:00:27]} 0-1

[Event "Karel Janecek Open 2025"]
[Site "Prague"]
[Date "2025.02.28"]
[Round "2.16"]
[White "Agmanov, Zhandos"]
[Black "Narr, Kevin"]
[Result "1-0"]
[Annotator "ChessBase"]
[ECO "C42"]
[WhiteElo "2469"]
[BlackElo "2130"]
[PlyCount "29"]
[EventDate "2025.02.21"]
[EventType "swiss"]
[EventCountry "CZE"]
[SourceTitle "playchess.com"]
[Source "ChessBase"]
[SourceQuality "1"]
[TimeControl "40/5400+30:1800+30"]

1. e4 {[%emt 0:04:50]} e5 {[%emt 0:00:05]} 2. Nf3 {[%emt 0:01:01]} Nf6 {[%emt 0:00:03]} 3. Nxe5 {[%emt 0:02:39]} d6 {[%emt 0:00:12]} 4. Nf3 {[%emt 0:00:13]} Nxe4 {[%emt 0:00:07]} 5. Nc3 {[%emt 0:01:38]} Nxc3 {[%emt 0:00:11]} 6. dxc3 {[%emt 0:00:10]} Be7 {[%emt 0:00:05]} 7. Bf4 {[%emt 0:00:46]} Nd7 {[%emt 0:01:47]} 8. Qd2 {[%emt 0:01:13]} O-O {[%emt 0:00:15]} 9. O-O-O {[%emt 0:01:08]} Re8 {[%emt 0:00:35]} 10. h4 {[%emt 0:01:12]} h6 {[%emt 0:04:06]} 11. Bc4 {[%emt 0:13:01]} Nb6 {[%emt 0:01:08]} 12. Bd3 {[%emt 0:00:38]} Be6 {[%emt 0:01:11]} 13. Bxh6 {[%emt 0:04:47]} gxh6 {[%emt 0:03:17]} 14. Qxh6 {[%emt 0:00:10]} Bf6 {[%emt 0:00:51]} 15. Rh3 {[%emt 0:02:12]} 1-0

[Event "Karel Janecek Open 2025"]
[Site "Prague"]
[Date "2025.03.01"]
[Round "3.1"]
[White "Pechac, Jergus"]
[Black "Dehtiarov, Roman"]
[Result "1-0"]
[Annotator "ChessBase"]
[ECO "C54"]
[WhiteElo "2603"]
[BlackElo "2376"]
[PlyCount "103"]
[EventDate "2025.02.21"]
[EventType "swiss"]
[EventCountry "CZE"]
[SourceTitle "playchess.com"]
[Source "ChessBase"]
[SourceQuality "1"]
[TimeControl "40/5400+30:1800+30"]

1. e4 {[%emt 0:00:04]} e5 {[%emt 0:00:05]} 2. Nf3 {[%emt 0:00:06]} Nc6 {[%emt 0:00:05]} 3. Bc4 {[%emt 0:00:06]} Bc5 {[%emt 0:00:09]} 4. O-O {[%emt 0:00:13]} Nf6 {[%emt 0:00:40]} 5. d3 {[%emt 0:00:08]} d6 {[%emt 0:00:21]} 6. c3 {[%emt 0:00:12]} a6 {[%emt 0:00:05]} 7. a4 {[%emt 0:00:06]} Ba7 {[%emt 0:00:05]} 8. Re1 {[%emt 0:00:15]} h6 {[%emt 0:00:06]} 9. Nbd2 {[%emt 0:00:08]} g5 {[%emt 0:00:30]} 10. b4 {[%emt 0:00:09]} Nh7 {[%emt 0:02:13]} 11. Kh1 {[%emt 0:00:20]} O-O {[%emt 0:00:17]} 12. Rf1 {[%emt 0:00:04]} Ne7 {[%emt 0:00:57]} 13. Bb3 {[%emt 0:00:37]} Ng6 {[%emt 0:03:16]} 14. Nc4 {[%emt 0:01:11]} Qf6 {[%emt 0:05:33]} 15. d4 {[%emt 0:00:26]} Bg4 {[%emt 0:06:33]} 16. Ne3 {[%emt 0:00:07]} Bxf3 {[%emt 0:00:37]} 17. Qxf3 {[%emt 0:08:49]} Qxf3 {[%emt 0:09:00]} 18. gxf3 {[%emt 0:00:03]} Nh4 {[%emt 0:00:59]} 19. Ng2 {[%emt 0:00:05]} Nxg2 {[%emt 0:17:21]} 20. Kxg2 {[%emt 0:00:04]} exd4 {[%emt 0:00:09]} 21. Bb2 {[%emt 0:00:04]} c5 {[%emt 0:04:06]} 22. cxd4 {[%emt 0:04:38]} cxd4 {[%emt 0:00:04]} 23. Rfd1 {[%emt 0:04:30]} Rac8 {[%emt 0:01:45]} 24. Bxd4 {[%emt 0:11:59]} Bxd4 {[%emt 0:00:06]} 25. Rxd4 {[%emt 0:00:02]} Rc3 {[%emt 0:00:16]} 26. Ba2 {[%emt 0:08:38]} Kg7 {[%emt 0:11:55]} 27. Rxd6 {[%emt 0:02:12]} Ra3 {[%emt 0:02:18]} 28. a5 {[%emt 0:00:03]} Nf6 {[%emt 0:03:49]} 29. Rdd1 {[%emt 0:07:18]} Nh5 {[%emt 0:04:27]} 30. Bd5 {[%emt 0:00:21]} Nf4+ {[%emt 0:00:04]} 31. Kg3 {[%emt 0:00:32]} Nh5+ {[%emt 0:11:13]} 32. Kh3 {[%emt 0:02:23]} Nf4+ {[%emt 0:00:23]} 33. Kg3 {[%emt 0:11:33]} Nh5+ {[%emt 0:00:06]} 34. Kg4 {[%emt 0:00:43]} Nf6+ {[%emt 0:00:16]} 35. Kh3 {[%emt 0:00:11]} g4+ {[%emt 0:03:11]} 36. Kg2 {[%emt 0:00:08]} gxf3+ {[%emt 0:03:15]} 37. Kg3 {[%emt 0:00:03]} Rc3 {[%emt 0:05:10]} 38. Rac1 {[%emt 0:04:07]} Nxd5 {[%emt 0:05:06]} 39. exd5 {[%emt 0:00:03]} Rb3 {[%emt 0:00:07]} 40. d6 {[%emt 0:05:36]} Kf6 {[%emt 0:02:12]} 41. Rd4 {[%emt 0:32:51]} Rg8+ {[%emt 0:15:24]} 42. Kf4 {[%emt 0:00:00]} Rb2 {[%emt 0:02:00]} 43. d7 {[%emt 0:00:00]} Ke7 {[%emt 0:00:19]} 44. Rc7 {[%emt 0:00:00]} Rd8 {[%emt 0:00:05]} 45. Kxf3 {[%emt 0:00:00]} Rb3+ {[%emt 0:00:04]} 46. Kg2 {[%emt 0:00:00]} Ke6 {[%emt 0:09:02]} 47. Rxb7 {[%emt 0:00:00]} Ke5 {[%emt 0:00:37]} 48. Rd1 {[%emt 0:00:00]} Kf4 {[%emt 0:00:14]} 49. Rc7 {[%emt 0:00:00]} Rg8+ {[%emt 0:00:11]} 50. Kf1 {[%emt 0:00:00]} Kf3 {[%emt 0:00:07]} 51. d8=Q {[%emt 0:00:00]} Rxd8 {[%emt 0:00:06]} 52. Rxf7+ {[%emt 0:00:05]} 1-0

[Event "Karel Janecek Open 2025"]
[Site "Prague"]
[Date "2025.03.01"]
[Round "3.2"]
[White "Stinka, Jakub"]
[Black "Nyzhnyk, Illya"]
[Result "1/2-1/2"]
[Annotator "TA"]
[ECO "B51"]
[WhiteElo "2377"]
[BlackElo "2569"]
[PlyCount "40"]
[EventDate "2025.02.21"]
[EventType "swiss"]
[EventCountry "CZE"]
[SourceTitle "playchess.com"]
[Source "ChessBase"]
[SourceQuality "1"]
[TimeControl "40/5400+30:1800+30"]

{[%evp 20,40,40,35,48,33,47,29,34,30,30,0,0,0,0,7,51,46,54,12,2,5,12]} 1. e4 {[%emt 0:00:03]} c5 {[%emt 0:00:26]} 2. Nf3 {[%emt 0:00:07]} d6 {[%emt 0:00:04]} 3. Bb5+ {[%emt 0:01:10]} Nc6 {[%emt 0:00:08]} 4. O-O {[%emt 0:00:00]} Bd7 {[%emt 0:00:36]} 5. Re1 {[%emt 0:00:17]} a6 {[%emt 0:01:41]} 6. Bf1 {[%emt 0:00:00]} Bg4 {[%emt 0:00:16]} 7. c3 {[%emt 0:00:42]} g6 {[%emt 0:02:21]} 8. h3 {[%emt 0:00:59]} Bxf3 {[%emt 0:00:05]} 9. Qxf3 {[%emt 0:00:06]} Bg7 {[%emt 0:00:02]} 10. d3 {[%emt 0:00:20]} Nf6 {[%emt 0:05:24]} 11. Be3 {[%emt 0:00:19]} O-O {[%emt 0:00:07] B51: Sicilian: Moscow Variation (3 Bb5+) without 3...Bd7.} 12. Nd2 {[%emt 0:00:19]} b5 {[%emt 0:02:01]} 13. Qd1 {[%emt 0:02:09]} Nd7 {[%emt 0:01:58] White has an edge.} 14. Nf3 {[%emt 0:01:41]} e5 {[%emt 0:08:41]} 15. d4 {[%emt 0:05:24]} exd4 {[%emt 0:00:41]} 16. cxd4 {[%emt 0:00:08]} Re8 {[%emt 0:00:19]} 17. a4 {[%emt 0:07:06]} c4 $146 {[%emt 0:15:31]} ({Predecessor:} 17... cxd4 18. Nxd4 Nxd4 19. Bxd4 Bxd4 20. Qxd4 Nc5 21. Rad1 Nxa4 22. b3 Nc5 23. b4 Na4 {½-½ Saric,I (2661)-Cvitan,O (2535) CRO-ch Porec 2014 (8)}) 18. axb5 {[%emt 0:09:30]} axb5 {[%emt 0:00:00]} 19. Rxa8 {[%emt 0:00:41]} Qxa8 {[%emt 0:00:00]} 20. b3 {[%emt 0:00:20]} Na5 {[%emt 0:00:00] Weighted Error Value: White=0.11 (very precise) /Black=0.07 (flawless)   Inaccurate:     	White=1     	Black=1      OK:         	White=3     	Black=5      Best:        	---       	Black=1} 1/2-1/2